Cogmind - Beta 15 @@@ ROGUE MODE // 2025.08.07 @ 11:56:46 Player: Inverisimilidude Result: Destroyed by VO-U77(R) with Subdweller Machine Gun Performance ------------- Evolutions (0) 0 Regions Visited (3) 600 Robots Destroyed (19) 95 Value Destroyed (462) 462 Prototype IDs (12) 240 Alien Tech Used (0) 0 Bonus (0) 0 TOTAL SCORE: 1397 Bonus ------- None Cogmind --------- Core Integrity 0/250 Matter 231/300 Energy 180/250 System Corruption 0% Temperature Cool (0) Movement Rolling (105) Ox1 Location -10/Subcaves Parts ------- > --- POWER (1) -------- Ion Engine > --- PROPULSION (2) --- Wheel Compact Wheel > --- UTILITY (2) ------ Medium Storage Unit Makeshift Light Armor Plating > --- WEAPON (2) ------- Heavy Riot Gun Slug Cannon > --- INVENTORY (10) --- Compact Wheel High-capacity Matter Pod (200) Experimental Sensor Array Improved Terrain Scanner Seismic Detector Assault Rifle Assault Rifle Assault Rifle Subdweller Shrapnel Launcher Peak State ------------ > --- POWER ------------ Ion Engine > --- PROPULSION ------- Wheel Compact Wheel > --- UTILITY ---------- Medium Storage Unit Experimental Sensor Array > --- WEAPON ----------- Battle Rifle Slug Cannon > --- INVENTORY -------- Compact Wheel High-capacity Matter Pod Improved Terrain Scanner Seismic Detector Riot Gun Assault Rifle Assault Rifle Assault Rifle [Rating: 20] Favorites ----------- Power Ion Engine Engine Ion Engine Propulsion Compact Wheel Leg Aluminum Leg Wheel Compact Wheel Utility Medium Storage Unit Device Experimental Sensor Array Storage Medium Storage Unit Protection Light Armor Plating Weapon Assault Rifle Energy Gun Medium Laser Ballistic Gun Assault Rifle Ballistic Cannon Slug Cannon Launcher Rocket Launcher Build | -11 -10 -10 -10 ------- Run | Yrd Mat Min Sub Slots Evolved . | . . . . Power . | . . . . Propulsion . | . . . . Utility . | . . . . Weapon . | . . . . Parts Attached 22 | 7 3 3 9 Power 2 | 1 . . 1 Engine 2 | 1 . . 1 Core . | . . . . Reactor . | . . . . Propulsion 5 | 2 1 1 1 Treads . | . . . . Leg 1 | . . 1 . Wheel 4 | 2 1 . 1 Hover . | . . . . Flight . | . . . . Utility 6 | 2 1 1 2 Device 2 | 1 . . 1 Storage 2 | 1 . 1 . Processor . | . . . . Hackware . | . . . . Protection 2 | . 1 . 1 Artifact . | . . . . Weapon 9 | 2 1 1 5 Energy Gun 3 | 2 . . 1 Energy Cannon . | . . . . Ballistic Gun 4 | . 1 . 3 Ballistic Cannon 1 | . . . 1 Launcher 1 | . . 1 . Special Weapon . | . . . . Impact Weapon . | . . . . Slashing Weapon . | . . . . Piercing Weapon . | . . . . Special Melee Weapon . | . . . . Unidentified Prototypes 1 | . . . 1 Parts Lost 6 | . . . 6 Power 1 | . . . 1 Propulsion 1 | . . . 1 Utility 1 | . . . 1 Weapon 3 | . . . 3 Highest Loss Streak 2 | . . . 2 To Critical Strikes . | . . . . Average Backups 8 | 3 7 8 9 Power . | . 1 1 . Propulsion 1 | 2 3 2 1 Utility 2 | . . 2 3 Weapon 2 | . 2 3 3 Tool/Special . | . . . . Unused Backups 8 | . 2 1 5 Power . | . . . . Propulsion 1 | . . 1 . Utility 2 | . . . 2 Weapon 5 | . 2 . 3 Tool/Special . | . . . . Average Slot Usage (%) 97 | . 100 100 96 Engine 12 | . 14 14 11 Leg 6 | . . 11 6 Wheel 21 | . 28 16 21 Device 11 | . 11 11 11 Storage 14 | . 14 14 14 Protection 1 | . 2 2 1 Energy Gun 5 | . 25 . . Ballistic Gun 13 | . 2 14 17 Ballistic Cannon 3 | . . . 6 Launcher 5 | . . 13 4 Peak Build Rating 20 | 7 7 10 20 Average Rating 12 | 5 6 8 16 On Entrance 6 | . 7 7 10 Naked Turns . | . . . . Heaviest Build 28 | 14 17 22 28 Greatest Support 32 | 26 32 32 26 Greatest Overweight (x) 1 | . . 1 1 Average Overweight (x) . | . . . . Largest Inventory Capacity 10 | 8 8 10 10 Average Capacity 9 | 7 8 8 10 Most Carried 10 | 5 8 10 10 Average Carried 8 | 4 7 8 9 Final Capacity 10 | 8 8 10 10 Final Carried 10 | 5 8 10 9 Class Distribution -------------------- 100% | Mutant Dominant Class ---------------- Mutant | -10/Materials Mutant | -10/Mines Mutant | -10/Subcaves Resources | -11 -10 -10 -10 ----------- Run | Yrd Mat Min Sub Matter Collected 1006 | 270 57 217 462 Remotely . | . . . . Salvage Created 558 | 173 149 75 161 Parts 40 | 16 7 6 11 Haulers Intercepted 1 | . 1 . . Recyclers Shooed . | . . . . Parts Field Recycled . | . . . . Retrieved Matter . | . . . . Parts Self-Destructed 10 | . . . 10 Prevented . | . . . . Kills | -11 -10 -10 -10 ------- Run | Yrd Mat Min Sub Combat Hostiles Destroyed 11 | . 2 2 7 Guns 8 | . 2 1 5 Cannons 2 | . . . 2 AOE 1 | . . 1 . Classes Destroyed 6 | 2 2 . 2 Tunneler 6 | 5 . 1 . Hauler 1 | . 1 . . Recycler 1 | 1 . . . Swarmer 1 | . . . 1 Grunt 4 | . 2 2 . Subdweller 6 | . . . 6 Best Kill Streak 4 | 4 1 2 2 Combat Bots Only 2 | . 1 2 2 Max Kills in Single Turn 1 | 1 1 1 1 Gunslinging . | . . . . Exploded 1 | . . 1 . Melee . | . . . . Uniques/NPCs Destroyed . | . . . . Combat | -11 -10 -10 -10 -------- Run | Yrd Mat Min Sub Hostile Shots Fired 82 | . 17 12 53 Missed 23 | . 6 3 14 Hits 59 | . 11 9 39 Projectile 59 | . 11 9 39 AOE 4 | . . . 4 Damage Taken 1202 | . 146 149 907 Core 263 | . 39 42 182 Absorbed by Shields . | . . . . Core Remaining (%) 100 | 100 . . . Volleys Fired 90 | 12 13 11 54 Largest 2 | 2 2 2 2 Hottest 100 | 90 90 53 100 Shots Fired 160 | 24 26 15 95 Gun 129 | 24 26 11 68 Cannon 21 | . . . 21 Launcher 10 | . . 4 6 Special . | . . . . Kinetic 104 | . 9 11 84 Thermal 41 | 24 17 . . Explosive 10 | . . 4 6 Electromagnetic 5 | . . . 5 Robot Hit Streak 16 | 9 10 5 16 Robot Miss Streak 4 | 1 2 2 4 Penetration Max . | . . . . Secondary Targets 1 | . . . 1 Max Gunslinging Chain 1 | . . . 1 Shots Hit Robots 103 | 17 18 10 58 Core Hits 33 | 7 7 6 13 Critical Kills . | . . . . Critical Parts Destroyed . | . . . . Critical Strikes 2 | 1 1 . . Burn 2 | 1 1 . . Melee Attacks . | . . . . Impact . | . . . . Slashing . | . . . . Piercing . | . . . . Sneak Attacks . | . . . . Combat Hostiles . | . . . . Follow-up Attacks . | . . . . Damage Inflicted 1759 | 210 231 321 997 Guns 1103 | 210 231 96 566 Cannons 315 | . . . 315 Explosions 341 | . . 225 116 Melee . | . . . . Ramming . | . . . . Kinetic 974 | . 83 96 795 Thermal 358 | 210 148 . . Explosive 341 | . . 225 116 Electromagnetic 86 | . . . 86 Impact . | . . . . Slashing . | . . . . Piercing . | . . . . Highest Corruption . | . . . . Average Corruption . | . . . . Corruption Purged . | . . . . Corruption Blocked . | . . . . Overload Shots . | . . . . Overflow Damage . | . . . . Projectiles . | . . . . Explosions . | . . . . Melee . | . . . . Knockbacks 3 | . . . 3 Impact . | . . . . Kinetic 3 | . . . 3 Secondary . | . . . . Self-Inflicted Damage 32 | . . 32 . Shots 1 | . . 1 . Rammed . | . . . . Targets Rammed . | . . . . Kicked . | . . . . Crushed . | . . . . Highest Temperature 180 | 180 180 30 . Average Temperature 65 | 59 82 17 . Received Heat Transfer 234 | . 87 69 78 Siege Activations . | . . . . Martial Activations . | . . . . Shielding Activations . | . . . . Robots Disrupted . | . . . . Combat Hostiles . | . . . . Robots Corrupted . | . . . . Combat Hostiles . | . . . . Parts Fried . | . . . . Impact Corruptions . | . . . . Robots Melted . | . . . . Combat Hostiles . | . . . . Parts Melted 1 | . . . 1 Heat Transferred 1114 | 620 494 . . Parts Sabotaged . | . . . . Parts Stolen . | . . . . Parts Stripped . | . . . . Power Chain Reactions . | . . . . Alert | -11 -10 -10 -10 ------- Run | Yrd Mat Min Sub Maximum Alert Level . | . . . . Low Security (%) 100 | 100 100 100 . Level 1 . | . . . . Level 2 . | . . . . Level 3 . | . . . . Level 4 . | . . . . Level 5 . | . . . . High Security . | . . . . Max Security . | . . . . Peak Influence 64 | 10 40 64 . Initial 11 | . . 11 . Average 7 | 2 5 10 . Influence Increases 208 | 30 79 79 20 Destroy 0b10 Robot/C 100 | . 40 40 20 Destroy 0b10 Robot/NC 40 | 30 5 5 . Destroy Leader 22 | . 12 10 . Successful Hack 22 | . 22 . . Destroy Structure 24 | . . 24 . Influence Decreases 208 | 30 49 109 20 Entered New Map 19 | . . 19 . Time Decay 189 | 30 49 90 20 Squads Dispatched 2 | . 2 . . Investigation 1 | . 1 . . Extermination . | . . . . Reinforcement 1 | . 1 . . Assault . | . . . . Garrison . | . . . . Intercept . | . . . . Searches Triggered . | . . . . Construction Impeded . | . . . . Haulers Reinforced . | . . . . Active Scanning Responses . | . . . . Cargo Convoy Interrupts . | . . . . Stealth | -11 -10 -10 -10 --------- Run | Yrd Mat Min Sub Distress Signals . | . . . . Communications Jammed . | . . . . Distress Signals . | . . . . Times Spotted 17 | . 4 2 11 Peak Tracking Total 2 | . 2 2 2 Tactical Retreats . | . . . . Traps | -11 -10 -10 -10 ------- Run | Yrd Mat Min Sub Traps Triggered 1 | . . . 1 Indirectly . | . . . . Trap Hack Attempts . | . . . . Triggered . | . . . . Disarmed . | . . . . Reprogrammed . | . . . . Reused . | . . . . Traps Extracted . | . . . . Installed . | . . . . Triggered . | . . . . Machines | -11 -10 -10 -10 ---------- Run | Yrd Mat Min Sub Machines Disabled . | . . . . Max in Single Turn . | . . . . Machines Repaired . | . . . . Machines Dismantled . | . . . . Machines Sabotaged . | . . . . Overloaded Fab Kills . | . . . . Hacking | -11 -10 -10 -10 --------- Run | Yrd Mat Min Sub Machines Accessed 4 | . 3 . 1 Terminals 3 | . 3 . . Fabricators . | . . . . Repair Stations . | . . . . Recycling Units . | . . . . Scanalyzers . | . . . . Garrison Access . | . . . . Total Hacks 11 | . 7 . 4 Successful 6 | . 2 . 4 Failed 5 | . 5 . . Catastrophic 1 | . 1 . . Database Lockouts . | . . . . Manual 2 | . 2 . . Terminals 7 | . 7 . . Fabricators . | . . . . Repair Stations . | . . . . Recycling Units . | . . . . Scanalyzers . | . . . . Garrison Access . | . . . . Terminal Hacks 6 | . 2 . 4 Record 3 | . . . 3 Branch Access Points 1 | . 1 . . Dispatch Records 1 | . 1 . . Proto ID Catalog 1 | . . . 1 Fabricator Hacks . | . . . . Repair Station Hacks . | . . . . Recycling Unit Hacks . | . . . . Scanalyzer . | . . . . Garrison Access Hacks . | . . . . Unauthorized Hacks . | . . . . Terminals . | . . . . Fabricators . | . . . . Repair Stations . | . . . . Recycling Units . | . . . . Scanalyzers . | . . . . Garrison Access . | . . . . Data Cores Recovered . | . . . . Used . | . . . . Hacking Detections 3 | . 3 . . Full Trace Events 1 | . 1 . . Feedback Events . | . . . . Feedback Blocked . | . . . . Robot Schematics Acquired . | . . . . Robots Built . | . . . . Authchips . | . . . . Time . | . . . . Total Robot Build Rating . | . . . . Part Schematics Acquired . | . . . . Parts Built . | . . . . Authchips . | . . . . Time . | . . . . Total Part Build Rating . | . . . . Parts Repaired . | . . . . Time . | . . . . Parts Recycled . | . . . . Recycled Matter . | . . . . Retrieved Matter . | . . . . Retrieved Components . | . . . . Parts Scanalyzed . | . . . . Part Schematics Acquired . | . . . . Parts Damaged . | . . . . Bothacking | -11 -10 -10 -10 ------------ Run | Yrd Mat Min Sub Used RIF Installer . | . . . . Robots Hacked . | . . . . Non-combat . | . . . . Combat . | . . . . Robot Hacks Applied . | . . . . Relay Couplers Released . | . . . . Fabnet Peak Effective % . | . . . . Robots Rewired . | . . . . Allies Hacked . | . . . . Hacks Repelled . | . . . . Allies | -11 -10 -10 -10 -------- Run | Yrd Mat Min Sub Total Allies 3 | . . 3 . Largest Group 3 | . . 3 . Highest-Rated Group 40 | . . 40 . Highest-Rated Ally 16 | . . 16 . Total Orders . | . . . . Ally Attacks 14 | . . 14 . Total Damage 125 | . . 125 . Kills 1 | . . 1 . Allies Corrupted . | . . . . Allies Melted . | . . . . Intel | -11 -10 -10 -10 ------- Run | Yrd Mat Min Sub Active Infowar (turns) 1461 | 23 283 371 784 Sensors 784 | . . . 784 Seismic 677 | 23 283 371 . Robot Analysis Total . | . . . . Derelict Logs Recovered . | . . . . Drone Launches . | . . . . Drone Recoveries . | . . . . Exploration | -11 -10 -10 -10 ------------- Run | Yrd Mat Min Sub Turns Passed 1944 | 184 350 424 986 Spaces Moved 1421 | 148 140 327 806 Core 1 | 1 . . . Treads . | . . . . Legs . | . . . . Wheels 1420 | 147 140 327 806 Hover . | . . . . Flight . | . . . . Fastest Speed 50 | 50 90 100 90 Average Speed 100 | 89 91 112 99 Slowest Speed 115 | 90 100 115 115 Overloaded Moves . | . . . . Propulsion Burnouts . | . . . . Robots Hopped . | . . . . Potential Cave-ins . | . . . . Cave-ins Triggered . | . . . . Exploration Rate (%) 28 | 5 22 46 42 Regions Visited 3 Branch Regions 2 Pre-discovered Areas . | . . . . Known Exits Taken 1 | . 1 . . Unknown Exits Taken 2 | 1 . 1 . Scrap Searched 12 | . . 1 11 Spaces Dug . | . . . . Terrain Destroyed 88 | . . 47 41 Melee . | . . . . Projectile 2 | . . . 2 AOE 86 | . . 47 39 Terrain Rammed . | . . . . Walls Destroyed . | . . . . Machines Disabled . | . . . . Actions | -11 -10 -10 -10 --------- Run | Yrd Mat Min Sub Total 1766 | 171 337 366 892 Wait 196 | . 173 17 6 Move 1418 | 147 139 326 806 Hop . | . . . . Pick Up 18 | 5 5 3 5 Fast Attach 10 | 7 1 1 1 Attach 7 | . . . 7 Detach 2 | . . . 2 Swap 17 | . 2 5 10 Drop 8 | . 4 3 1 Fire 90 | 12 13 11 54 Melee . | . . . . Ram . | . . . . Kick . | . . . . Crush . | . . . . Escape Stasis . | . . . . Rewire . | . . . . Trap . | . . . . Miscellaneous . | . . . . Route ------- -11/Scrapyard -10/Materials -10/Mines -10/Subcaves (discovered 1 exit: [*Mat]) History --------- Turn | Location | Event 15 | -11/Scrapyard | Discovered new exit (range 16) 185 | -11/Scrapyard | Entered Materials 207 | -10/Materials | Identified exit to Mines 300 | -10/Materials | Build established: Mutant 535 | -10/Materials | Entered Mines 542 | -10/Mines | Received a Rocket Launcher from a helpful Derelict 588 | -10/Mines | Found a damaged Exp. Sensor Array with a note attached 592 | -10/Mines | Found Prototype Device 693 | -10/Mines | Discovered new exit (range 7) 770 | -10/Mines | Assisted by bots powering up and referring to "LRC-V3" 878 | -10/Mines | Assembled infested the area 883 | -10/Mines | Assisted by a Guerilla fighting off Assembled 933 | -10/Mines | Lost 4 allies 959 | -10/Mines | Entered Subcaves 959 | -10/Subcaves | Identified Exp. Sensor Array 960 | -10/Subcaves | Approached by a straggling Scientist 1135 | -10/Subcaves | Visited 4L-MR0's lab 1244 | -10/Subcaves | A swath of the cavern ceiling suddenly collapsed 1264 | -10/Subcaves | Core integrity fell below 50% 1370 | -10/Subcaves | Discovered new exit (range 14) 1534 | -10/Subcaves | Core integrity fell below 20% 1778 | -10/Subcaves | Shifting Twisted Machinery released Riot Gun 1872 | -10/Subcaves | Shifting Twisted Machinery released Flamer 1928 | -10/Subcaves | Disturbed a concealed Subdweller 1945 | -10/Subcaves | Destroyed by VO-U77(R) with Subdweller Machine Gun Last Messages --------------- 01632_ Searching scrap... 01632_ Found Mak. Hacking Suite. 01632_ Found Hvy. Riot Gun. 01632_ Found 39 Matter. 01636_ Dropped Riot Gun. 01636_ Acquired Hvy. Riot Gun. 01640_ Acquired Mak. Light Armor Plating. 01644_ Acquired 9 matter. 01654_ Acquired 1 matter. 01668_ Acquired 10 matter. 01669_ Acquired Sub. Shrapnel Launcher. 01710_ Slug penetrates Twisted Machinery. Riot Gun falls loose from the Twisted Machinery. Flamer falls loose from the Twisted Machinery. 01928_ VO-U77(R) angrily emerges from the Twisted Machinery. 01929_ Battle Rifle destroyed. 01931_ VO-U77(R) knocked back. 01935_ VO-U77(R) affixes Scrap Shield Fragment to Scrap Shield. Map ----- +----------------------------------------------------+ | | | | | ?????????????????????????????????????????????????? | | ####?????????????????????????????????????????????? | | "&%##????????????????????????????????????????????? | | %#????????????????????????????????????????????? | | #????????????????????????????????????????????? | | #" "#????????????????????????????????????????????? | | & "##????????????????????????????????????????????? | | ###?????????????????????????????????????????????? | | =& ##????????????????????????????????????????????? | | | #????????????????????????????????????????????? | | "#????????????????????????????????????????????? | | "##????????????????????????????????????????????? | | " ##??????????????????#########??????????????????? | | #####????????????????## #??????????????????? | | ### ##??????????????## #### #??????####????????? | | #######???????## ##<<## #?????## #????????? | | ##??????# #<%%<# #????## #????????? | | ##?????# #<%R<#[###### ##????????? | | ## #??##### # < !*[; # ##????????? | | ### ## ##?## ;; [! ; ##??###### | | ###?##### ##?# ;% % #### | | ##??????# ### ; " ## # | | %##?????## ## &*"""##?# | | ##?????# ##;; @ %%= ;#### | | ##????# # ## ;; ;; & #""## ## | | #????### ####### ;; ; ;;## " " ##? | | #??????####?????### # ;# ##### "##?? | | ###?????????????????#### ##### ####??? | | ##??????????????????????# #### ###?### | | #???????????????????????## ## "###"" | | ##?#?????????????????????## ## " | | # #??????????????????????# ### | | #??????????????????????###### ### | | # #????????????????????????#### ## ### | | ## #????????????????????????# ### ### # | | #? #???????????????????????## ##### ## ## | | #??##????????????????????????###### ## ###? | | #?????????????????????????????????# #### #??? | | #????????????????????????????## #### ##??? | | #???????????????????????????## ##?## | | ## #???????????????????????????# ### | | ??# #???????????????????????????# | | ???# #???????????????????????????# ## | | ????##???????????????????????????# "## | | ????????????????????????????????## ""## " | | ???????????????????????????????## " [" ## | | ###????????????????????????????# "" ### | | #???????????????????????????#""" ## " #?# | +----------------------------------------------------+ Best States ------------- Heat Dissipation 25 Energy Generation 10 Energy Capacity 250 Matter Stores 300 Matter Capacity 300 Sight Range 16 Robot Scan Range 20 Terrain Scan Density 10 Armor Coverage 150 Evasion (%) 42 Item Schematics ----------------- None Robot Schematics ------------------ None Fabricated ------------ Nothing Repaired ---------- Nothing Alien Tech Used ----------------- None Achievements -------------- None Challenges ------------ None Game ------ Seed DecoderMetaNetwork Manual? 0 Play Time 00:17:41 Cumulative 99.9 hours Start 2025.08.07 @ 11:40:51 End 2025.08.07 @ 11:56:46 Sessions 1 Manual Loads 0 Difficulty Rogue Special Mode None Game No. 124 Rogue 124 Adventurer 0 Explorer 0 Win Type - Total 0 Types 0/0/0/0/0/0/0/0/0/0 Lore% 62 Gallery% 45 Achievement% 43 Wizard Run 0 Options --------- Layout 1 ASCII 0 Keyboard 0 Movement Arrows Keybinds 0 Fullscreen 1 Font 24/Smallcaps Map View 50x35 Zoom Use 0% Tactical HUD 1 Map Filters NONE Filters NONE Steam 1 RUN: ad1100ec-8945-4eb0-931f-fcdcdcada85b